fUST/lending_fUST_20260522
["ID","MTS","AMOUNT","RATE_DAILY","PERIOD"]
[422785798,1779387039000,-500.0,8.219e-05,2]
[422785791,1779387039000,-522.81183892,8.219e-05,2]
[422785795,1779387039000,-500.0,8.219e-05,2]
[422785799,1779387039000,-171.75435626,8.219e-05,2]
[422785810,1779387039000,-364.68529578,8.219e-05,2]
[422785802,1779387039000,-500.0,8.219e-05,2]
[422785808,1779387039000,-500.0,8.219e-05,2]
[422785806,1779387039000,-596.15021096,8.219e-05,2]
[422785809,1779387039000,-500.0,8.219e-05,2]
[422785807,1779387039000,-500.0,8.219e-05,2]
[422785805,1779387039000,-500.16953051,8.219e-05,2]
[422785801,1779387039000,-500.0,8.219e-05,2]
[422785803,1779387039000,-525.55,8.219e-05,2]
[422785804,1779387039000,-500.45411457,8.219e-05,2]
[422785811,1779387039000,-3941.5,8.219e-05,2]
[422785800,1779387039000,-500.0,8.219e-05,2]
[422785784,1779387039000,-503.86000507,8.219e-05,2]
[422785768,1779387039000,-500.0,8.219e-05,2]
[422785782,1779387039000,-500.0,8.219e-05,2]
[422785763,1779387039000,-500.0,8.219e-05,2]
[422785757,1779387039000,-395.7999776,8.219e-05,2]
[422785759,1779387039000,-500.0,8.219e-05,2]
[422785760,1779387039000,-500.0,8.219e-05,2]
[422785758,1779387039000,-164.31074602,8.219e-05,2]
[422785761,1779387039000,-597.85,8.219e-05,2]
[422785764,1779387039000,-500.0,8.219e-05,2]
[422785767,1779387039000,-500.28046546,8.219e-05,2]
[422785765,1779387039000,-500.0,8.219e-05,2]
[422785771,1779387039000,-500.0,8.219e-05,2]
[422785770,1779387039000,-500.0,8.219e-05,2]
[422785766,1779387039000,-500.0,8.219e-05,2]
[422785769,1779387039000,-500.0,8.219e-05,2]
[422785774,1779387039000,-500.0,8.219e-05,2]
[422785773,1779387039000,-500.43037653,8.219e-05,2]
[422785772,1779387039000,-500.0,8.219e-05,2]
[422785776,1779387039000,-587.97132463,8.219e-05,2]
[422785815,1779387039000,-687.44,8.219e-05,2]
[422785786,1779387039000,-523.4,8.219e-05,2]
[422785775,1779387039000,-500.0,8.219e-05,2]
[422785777,1779387039000,-500.0,8.219e-05,2]
[422785778,1779387039000,-500.0,8.219e-05,2]
[422785779,1779387039000,-500.0,8.219e-05,2]
[422785780,1779387039000,-500.0,8.219e-05,2]
[422785781,1779387039000,-190.12949262,8.219e-05,2]
[422785783,1779387039000,-500.0,8.219e-05,2]
[422785814,1779387039000,-500.0,8.219e-05,2]
[422785857,1779387039000,-622.7,8.493e-05,2]
[422785816,1779387039000,-500.0,8.219e-05,2]
[422785846,1779387039000,-300.0,8.382e-05,2]
[422785848,1779387039000,-300.0,8.382e-05,2]
[422785849,1779387039000,-300.0,8.382e-05,2]
[422785850,1779387039000,-300.0,8.382e-05,2]
[422785847,1779387039000,-300.0,8.382e-05,2]
[422785851,1779387039000,-300.0,8.382e-05,2]
[422785856,1779387039000,-675.05,8.493e-05,2]
[422785855,1779387039000,-500.0,8.493e-05,2]
[422785853,1779387039000,-500.0,8.493e-05,2]
[422785852,1779387039000,-233.25694894,8.493e-05,2]
[422785854,1779387039000,-500.0,8.493e-05,2]
[422785859,1779387039000,-500.0,8.493e-05,2]
[422785870,1779387039000,-500.0,8.493e-05,2]
[422785861,1779387039000,-3941.5,8.493e-05,2]
[422785865,1779387039000,-500.0,8.493e-05,2]
[422785858,1779387039000,-525.55,8.493e-05,2]
[422785862,1779387039000,-500.0,8.493e-05,2]
[422785863,1779387039000,-687.44,8.493e-05,2]
[422785860,1779387039000,-160.64626179,8.493e-05,2]
[422785868,1779387039000,-500.0,8.493e-05,2]
[422785874,1779387039000,-500.0,8.493e-05,2]
[422785876,1779387039000,-500.0,8.493e-05,2]
[422785872,1779387039000,-500.0,8.493e-05,2]
[422785875,1779387039000,-500.0,8.493e-05,2]
[422785820,1779387039000,-500.0,8.219e-05,2]
[422785840,1779387039000,-300.0,8.382e-05,2]
[422785838,1779387039000,-300.0,8.382e-05,2]
[422785877,1779387039000,-605.42,8.493e-05,2]
[422785841,1779387039000,-300.0,8.382e-05,2]
[422785843,1779387039000,-300.0,8.382e-05,2]
[422785817,1779387039000,-440.54017475,8.219e-05,2]
[422785813,1779387039000,-500.0,8.219e-05,2]
[422785818,1779387039000,-500.0,8.219e-05,2]
[422785812,1779387039000,-500.0,8.219e-05,2]
[422785823,1779387039000,-500.0,8.219e-05,2]
[422785819,1779387039000,-500.0,8.219e-05,2]
[422785822,1779387039000,-500.0,8.219e-05,2]
[422785821,1779387039000,-500.0,8.219e-05,2]
[422785827,1779387039000,-500.0,8.219e-05,2]
[422785824,1779387039000,-500.0,8.219e-05,2]
[422785826,1779387039000,-605.42,8.219e-05,2]
[422785825,1779387039000,-500.0,8.219e-05,2]
[422785829,1779387039000,-500.0,8.219e-05,2]
[422785842,1779387039000,-300.0,8.382e-05,2]
[422785839,1779387039000,-300.0,8.382e-05,2]
[422785828,1779387039000,-500.0,8.219e-05,2]
[422785837,1779387039000,-300.0,8.382e-05,2]
[422785834,1779387039000,-619.31,8.219e-05,2]
[422785845,1779387039000,-300.0,8.382e-05,2]
[422785836,1779387039000,-300.0,8.382e-05,2]
[422785830,1779387039000,-511.77,8.219e-05,2]
[422785831,1779387039000,-500.0,8.219e-05,2]
[422785833,1779387039000,-500.0,8.219e-05,2]
[422785832,1779387039000,-585.25,8.219e-05,2]
[422785835,1779387039000,-345.415741,8.345e-05,2]
[422785887,1779387040000,-500.0,8.498e-05,2]
[422785879,1779387040000,-500.0,8.493e-05,2]
[422785880,1779387040000,-500.0,8.493e-05,2]
[422785878,1779387040000,-500.0,8.493e-05,2]
[422785882,1779387040000,-58.52605159,8.493e-05,2]
[422785881,1779387040000,-511.77,8.493e-05,2]
[422785885,1779387040000,-619.31,8.493e-05,2]
[422785886,1779387040000,-500.0,8.498e-05,2]
[422785883,1779387040000,-441.47394841,8.493e-05,2]
[422785884,1779387040000,-500.0,8.493e-05,2]
[422785891,1779387040000,-208.43579953,8.766e-05,2]
[422785890,1779387040000,-479.70197985,8.746e-05,2]
[422785888,1779387040000,-600.0,8.549e-05,2]
[422785893,1779387040000,-1064.28351305,8.766e-05,2]
[422785889,1779387040000,-345.415741,8.682e-05,2]
[422785897,1779387040000,-312.78266009,8.766e-05,2]
[422785894,1779387040000,-1064.28351305,8.766e-05,2]
[422785896,1779387040000,-89.00263695,8.766e-05,2]
[422785895,1779387040000,-1064.28351305,8.766e-05,2]
[422785892,1779387040000,-1064.28351305,8.766e-05,2]
[422785919,1779387046000,-204.55110837,8.218e-05,2]
[422785922,1779387046000,-500.0,8.218e-05,2]
[422785920,1779387046000,-500.0,8.218e-05,2]
[422785921,1779387046000,-265.06151779,8.218e-05,2]
[422785950,1779387047000,-511.77,8.767e-05,2]
[422785947,1779387047000,-500.0,8.767e-05,2]
[422785948,1779387047000,-500.0,8.767e-05,2]
[422785951,1779387047000,-500.0,8.767e-05,2]
[422785949,1779387047000,-500.0,8.767e-05,2]
[422785942,1779387047000,-500.0,8.767e-05,2]
[422785940,1779387047000,-500.0,8.767e-05,2]
[422785941,1779387047000,-358.47,8.767e-05,2]
[422785945,1779387047000,-500.0,8.767e-05,2]
[422785944,1779387047000,-500.0,8.767e-05,2]
[422785939,1779387047000,-500.0,8.767e-05,2]
[422785938,1779387047000,-687.44,8.767e-05,2]
[422785928,1779387047000,-662.49821601,8.766e-05,2]
[422785932,1779387047000,-500.0,8.767e-05,2]
[422785937,1779387047000,-500.0,8.767e-05,2]
[422785935,1779387047000,-500.0,8.767e-05,2]
[422785929,1779387047000,-1064.28351305,8.766e-05,2]
[422785934,1779387047000,-675.05,8.767e-05,2]
[422785933,1779387047000,-500.0,8.767e-05,2]
[422785931,1779387047000,-1064.28351305,8.766e-05,2]
[422785930,1779387047000,-1064.28351305,8.766e-05,2]
[422785927,1779387047000,-3930.39464961,8.678e-05,2]
[422785926,1779387047000,-1069.60535039,8.678e-05,2]
[422785924,1779387047000,-500.0,8.219e-05,2]
[422785925,1779387047000,-500.0,8.493e-05,2]
[422785923,1779387047000,-304.97128825,8.218e-05,2]
[422785936,1779387047000,-3941.5,8.767e-05,2]
[422785943,1779387047000,-501.51,8.767e-05,2]
[422785962,1779387047000,-500.0,9.041e-05,2]
[422785952,1779387047000,-500.0,8.767e-05,2]
[422785979,1779387047000,-184.95064983,9.041e-05,2]
[422785980,1779387047000,-567.83666977,9.041e-05,2]
[422785977,1779387047000,-511.77,9.041e-05,2]
[422785976,1779387047000,-500.0,9.041e-05,2]
[422785978,1779387047000,-500.0,9.041e-05,2]
[422785971,1779387047000,-500.0,9.041e-05,2]
[422785968,1779387047000,-500.0,9.041e-05,2]
[422785972,1779387047000,-500.0,9.041e-05,2]
[422785967,1779387047000,-687.44,9.041e-05,2]
[422785970,1779387047000,-500.0,9.041e-05,2]
[422785966,1779387047000,-500.0,9.041e-05,2]
[422785965,1779387047000,-3941.5,9.041e-05,2]
[422785975,1779387047000,-500.0,9.041e-05,2]
[422785969,1779387047000,-500.0,9.041e-05,2]
[422785964,1779387047000,-500.0,9.041e-05,2]
[422785974,1779387047000,-500.0,9.041e-05,2]
[422785954,1779387047000,-500.0,8.767e-05,2]
[422785959,1779387047000,-345.415741,9.019e-05,2]
[422785953,1779387047000,-619.31,8.767e-05,2]
[422785957,1779387047000,-300.0,8.946e-05,2]
[422785958,1779387047000,-420.0,8.946e-05,2]
[422785946,1779387047000,-605.42,8.767e-05,2]
[422785955,1779387047000,-384.02,8.772e-05,2]
[422785963,1779387047000,-675.05,9.041e-05,2]
[422785961,1779387047000,-273.11,9.041e-05,2]
[422785960,1779387047000,-300.0,9.04e-05,2]
[422785973,1779387047000,-605.42,9.041e-05,2]
[422785956,1779387047000,-313.0,8.946e-05,2]
[422786040,1779388231000,-300.0,7.596e-05,2]
[422786033,1779388231000,-1349.64553418,7.447e-05,2]
[422786034,1779388231000,-3650.35446582,7.447e-05,2]
[422786037,1779388231000,-133.14743361,7.596e-05,2]
[422786038,1779388231000,-679.45363298,7.596e-05,2]
[422786036,1779388231000,-1200.0,7.595e-05,2]
[422786044,1779388231000,-500.0,7.597e-05,2]
[422786039,1779388231000,-387.39893341,7.596e-05,2]
[422786041,1779388231000,-300.0,7.596e-05,2]
[422786042,1779388231000,-300.0,7.596e-05,2]
[422786043,1779388231000,-204.55110837,7.597e-05,2]
[422786035,1779388231000,-472.43494072,7.523e-05,2]
[422786045,1779388232000,-309.84323785,7.597e-05,2]
[422786047,1779388232000,-500.0,7.597e-05,2]
[422786046,1779388232000,-8.95516397,7.597e-05,2]
[422786048,1779388232000,-500.0,7.597e-05,2]
[422786049,1779388232000,-412.30560563,7.597e-05,2]
[422786105,1779388238000,-548.51108824,7.597e-05,2]
[422786088,1779388238000,-548.51108824,7.597e-05,2]
[422786090,1779388238000,-500.0,7.597e-05,2]
[422786094,1779388238000,-548.51108824,7.597e-05,2]
[422786092,1779388238000,-548.51108824,7.597e-05,2]
[422786093,1779388238000,-548.51108824,7.597e-05,2]
[422786095,1779388238000,-500.0,7.597e-05,2]
[422786096,1779388238000,-548.51108824,7.597e-05,2]
[422786098,1779388238000,-199.09309075,7.597e-05,2]
[422786087,1779388238000,-500.0,7.597e-05,2]
[422786099,1779388238000,-548.51108824,7.597e-05,2]
[422786100,1779388238000,-500.0,7.597e-05,2]
[422786101,1779388238000,-548.51108824,7.597e-05,2]
[422786102,1779388238000,-548.51108824,7.597e-05,2]
[422786104,1779388238000,-548.51108824,7.597e-05,2]
[422786103,1779388238000,-548.51108824,7.597e-05,2]
[422786107,1779388238000,-548.51108824,7.597e-05,2]
[422786097,1779388238000,-548.51108824,7.597e-05,2]
[422786089,1779388238000,-548.51108824,7.597e-05,2]
[422786084,1779388238000,-500.0,7.597e-05,2]
[422786068,1779388238000,-4101.80569352,7.521e-05,2]
[422786067,1779388238000,-484.042256,7.521e-05,2]
[422786069,1779388238000,-414.15205048,7.521e-05,2]
[422786070,1779388238000,-136.20548261,7.597e-05,2]
[422786073,1779388238000,-548.51108824,7.597e-05,2]
[422786071,1779388238000,-500.0,7.597e-05,2]
[422786072,1779388238000,-500.0,7.597e-05,2]
[422786108,1779388238000,-548.51108824,7.597e-05,2]
[422786076,1779388238000,-579.42512185,7.597e-05,2]
[422786078,1779388238000,-500.0,7.597e-05,2]
[422786075,1779388238000,-532.72182746,7.597e-05,2]
[422786079,1779388238000,-548.51108824,7.597e-05,2]
[422786081,1779388238000,-548.51108824,7.597e-05,2]
[422786083,1779388238000,-548.51108824,7.597e-05,2]
[422786080,1779388238000,-500.0,7.597e-05,2]
[422786082,1779388238000,-500.0,7.597e-05,2]
[422786086,1779388238000,-548.51108824,7.597e-05,2]
[422786091,1779388238000,-548.51108824,7.597e-05,2]
[422786106,1779388238000,-548.51108824,7.597e-05,2]
[422786077,1779388238000,-548.51108824,7.597e-05,2]
[422786110,1779388238000,-548.51108824,7.597e-05,2]
[422786128,1779388238000,-548.51108824,7.597e-05,2]
[422786136,1779388238000,-548.51108824,7.597e-05,2]
[422786135,1779388238000,-548.51108824,7.597e-05,2]
[422786134,1779388238000,-548.51108824,7.597e-05,2]
[422786137,1779388238000,-548.51108824,7.597e-05,2]
[422786138,1779388238000,-548.51108824,7.597e-05,2]
[422786139,1779388238000,-548.51108824,7.597e-05,2]
[422786141,1779388238000,-548.51108825,7.597e-05,2]
[422786142,1779388238000,-548.51108825,7.597e-05,2]
[422786140,1779388238000,-548.51108825,7.597e-05,2]
[422786143,1779388238000,-548.51108825,7.597e-05,2]
[422786144,1779388238000,-548.51108825,7.597e-05,2]
[422786145,1779388238000,-548.51108825,7.597e-05,2]
[422786146,1779388238000,-548.51108825,7.597e-05,2]
[422786147,1779388238000,-548.51108825,7.597e-05,2]
[422786148,1779388238000,-548.51108825,7.597e-05,2]
[422786109,1779388238000,-548.51108824,7.597e-05,2]
[422786125,1779388238000,-548.51108824,7.597e-05,2]
[422786126,1779388238000,-548.51108824,7.597e-05,2]
[422786074,1779388238000,-245.32544722,7.597e-05,2]
[422786121,1779388238000,-548.51108824,7.597e-05,2]
[422786111,1779388238000,-548.51108824,7.597e-05,2]
[422786113,1779388238000,-548.51108824,7.597e-05,2]
[422786112,1779388238000,-548.51108824,7.597e-05,2]
[422786117,1779388238000,-548.51108824,7.597e-05,2]
[422786115,1779388238000,-548.51108824,7.597e-05,2]
[422786119,1779388238000,-548.51108824,7.597e-05,2]
[422786116,1779388238000,-548.51108824,7.597e-05,2]
[422786118,1779388238000,-548.51108824,7.597e-05,2]
[422786127,1779388238000,-548.51108824,7.597e-05,2]
[422786114,1779388238000,-548.51108824,7.597e-05,2]
[422786133,1779388238000,-548.51108824,7.597e-05,2]
[422786120,1779388238000,-548.51108824,7.597e-05,2]
[422786132,1779388238000,-548.51108824,7.597e-05,2]
[422786129,1779388238000,-548.51108824,7.597e-05,2]
[422786124,1779388238000,-548.51108824,7.597e-05,2]
[422786130,1779388238000,-548.51108824,7.597e-05,2]
[422786123,1779388238000,-548.51108824,7.597e-05,2]
[422786131,1779388238000,-548.51108824,7.597e-05,2]
[422786122,1779388238000,-548.51108824,7.597e-05,2]
[422786195,1779388239000,-300.0,7.751e-05,2]
[422786194,1779388239000,-300.0,7.751e-05,2]
[422786192,1779388239000,-77683.79595771,7.6e-05,2]
[422786193,1779388239000,-300.0,7.751e-05,2]
[422786191,1779388239000,-1348.51341712,7.599e-05,2]
[422786189,1779388239000,-1167.71073326,7.599e-05,2]
[422786184,1779388239000,-1167.71073326,7.599e-05,2]
[422786186,1779388239000,-1167.71073326,7.599e-05,2]
[422786188,1779388239000,-1167.71073326,7.599e-05,2]
[422786187,1779388239000,-1167.71073326,7.599e-05,2]
[422786185,1779388239000,-1167.71073326,7.599e-05,2]
[422786196,1779388239000,-300.0,7.751e-05,2]
[422786190,1779388239000,-1348.51341712,7.599e-05,2]
[422786198,1779388239000,-300.0,7.751e-05,2]
[422786210,1779388239000,-600.0,7.751e-05,2]
[422786199,1779388239000,-300.0,7.751e-05,2]
[422786200,1779388239000,-300.0,7.751e-05,2]
[422786202,1779388239000,-300.0,7.751e-05,2]
[422786201,1779388239000,-300.0,7.751e-05,2]
[422786204,1779388239000,-300.0,7.751e-05,2]
[422786203,1779388239000,-300.0,7.751e-05,2]
[422786206,1779388239000,-300.0,7.751e-05,2]
[422786208,1779388239000,-300.0,7.751e-05,2]
[422786183,1779388239000,-1167.71073326,7.599e-05,2]
[422786212,1779388239000,-220.21779177,7.768e-05,2]
[422786209,1779388239000,-300.0,7.751e-05,2]
[422786211,1779388239000,-226.22514172,7.751e-05,2]
[422786214,1779388239000,-186.587482,8.008e-05,2]
[422786216,1779388239000,-1154.87874718,8.218e-05,2]
[422786197,1779388239000,-300.0,7.751e-05,2]
[422786181,1779388239000,-1167.71073326,7.599e-05,2]
[422786171,1779388239000,-548.51108824,7.597e-05,2]
[422786180,1779388239000,-1167.71073326,7.599e-05,2]
[422786150,1779388239000,-548.51108825,7.597e-05,2]
[422786149,1779388239000,-548.51108825,7.597e-05,2]
[422786152,1779388239000,-548.51108825,7.597e-05,2]
[422786151,1779388239000,-548.51108825,7.597e-05,2]
[422786154,1779388239000,-548.51108825,7.597e-05,2]
[422786153,1779388239000,-548.51108825,7.597e-05,2]
[422786155,1779388239000,-548.51108825,7.597e-05,2]
[422786156,1779388239000,-548.51108825,7.597e-05,2]
[422786158,1779388239000,-548.51108825,7.597e-05,2]
[422786157,1779388239000,-548.51108825,7.597e-05,2]
[422786160,1779388239000,-548.51108825,7.597e-05,2]
[422786159,1779388239000,-548.51108825,7.597e-05,2]
[422786161,1779388239000,-548.51108825,7.597e-05,2]
[422786163,1779388239000,-548.51108825,7.597e-05,2]
[422786182,1779388239000,-1167.71073326,7.599e-05,2]
[422786162,1779388239000,-548.51108825,7.597e-05,2]
[422786164,1779388239000,-548.51108825,7.597e-05,2]
[422786167,1779388239000,-548.51108824,7.597e-05,2]
[422786168,1779388239000,-548.51108824,7.597e-05,2]
[422786169,1779388239000,-548.51108824,7.597e-05,2]
[422786174,1779388239000,-548.51108824,7.597e-05,2]
[422786172,1779388239000,-548.51108824,7.597e-05,2]
[422786213,1779388239000,-154.69690584,8e-05,2]
[422786173,1779388239000,-548.51108824,7.597e-05,2]
[422786170,1779388239000,-548.51108824,7.597e-05,2]
[422786178,1779388239000,-1167.71073326,7.599e-05,2]
[422786177,1779388239000,-1167.71073326,7.599e-05,2]
[422786176,1779388239000,-1167.71073326,7.599e-05,2]
[422786175,1779388239000,-548.51108824,7.597e-05,2]
[422786179,1779388239000,-1167.71073326,7.599e-05,2]
[422786165,1779388239000,-548.51108825,7.597e-05,2]
[422786215,1779388239000,-226.2251417,8.113e-05,2]
[422786166,1779388239000,-548.51108825,7.597e-05,2]
[422786219,1779388239000,-1154.87874718,8.218e-05,2]
[422786255,1779388239000,-500.0,8.219e-05,2]
[422786253,1779388239000,-500.0,8.219e-05,2]
[422786256,1779388239000,-386.47428833,8.219e-05,2]
[422786258,1779388239000,-500.0,8.219e-05,2]
[422786260,1779388239000,-3284.59,8.219e-05,2]
[422786264,1779388239000,-500.0,8.219e-05,2]
[422786266,1779388239000,-572.87,8.219e-05,2]
[422786262,1779388239000,-500.0,8.219e-05,2]
[422786269,1779388239000,-500.0,8.219e-05,2]
[422786268,1779388239000,-500.0,8.219e-05,2]
[422786271,1779388239000,-504.52,8.219e-05,2]
[422786270,1779388239000,-500.0,8.219e-05,2]
[422786289,1779388239000,-500.0,8.493e-05,2]
[422786273,1779388239000,-500.0,8.219e-05,2]
[422786254,1779388239000,-500.0,8.219e-05,2]
[422786274,1779388239000,-500.0,8.219e-05,2]
[422786276,1779388239000,-500.0,8.219e-05,2]
[422786275,1779388239000,-500.0,8.219e-05,2]
[422786280,1779388239000,-500.0,8.219e-05,2]
[422786283,1779388239000,-500.0,8.219e-05,2]
[422786281,1779388239000,-153.28562773,8.219e-05,2]
[422786278,1779388239000,-500.0,8.219e-05,2]
[422786279,1779388239000,-504.8704422,8.219e-05,2]
[422786282,1779388239000,-500.0,8.219e-05,2]
[422786285,1779388239000,-186.587482,8.345e-05,2]
[422786284,1779388239000,-482.86119145,8.219e-05,2]
[422786286,1779388239000,-180.0,8.356e-05,2]
[422786287,1779388239000,-226.2251417,8.476e-05,2]
[422786288,1779388239000,-562.54,8.493e-05,2]
[422786217,1779388239000,-1154.87874718,8.218e-05,2]
[422786272,1779388239000,-500.0,8.219e-05,2]
[422786251,1779388239000,-500.0,8.219e-05,2]
[422786277,1779388239000,-500.0,8.219e-05,2]
[422786250,1779388239000,-500.0,8.219e-05,2]
[422786218,1779388239000,-1154.87874718,8.218e-05,2]
[422786252,1779388239000,-500.0,8.219e-05,2]
[422786221,1779388239000,-340.78338378,8.219e-05,2]
[422786226,1779388239000,-500.0,8.219e-05,2]
[422786220,1779388239000,-500.0,8.219e-05,2]
[422786222,1779388239000,-500.0,8.219e-05,2]
[422786224,1779388239000,-500.0,8.219e-05,2]
[422786225,1779388239000,-500.0,8.219e-05,2]
[422786227,1779388239000,-562.54,8.219e-05,2]
[422786228,1779388239000,-500.0,8.219e-05,2]
[422786230,1779388239000,-500.0,8.219e-05,2]
[422786229,1779388239000,-607.90504423,8.219e-05,2]
[422786231,1779388239000,-501.35455154,8.219e-05,2]
[422786232,1779388239000,-500.0,8.219e-05,2]
[422786233,1779388239000,-235.59086923,8.219e-05,2]
[422786223,1779388239000,-605.06,8.219e-05,2]
[422786237,1779388239000,-500.0,8.219e-05,2]
[422786247,1779388239000,-448.88211488,8.219e-05,2]
[422786234,1779388239000,-500.0,8.219e-05,2]
[422786249,1779388239000,-500.0,8.219e-05,2]
[422786248,1779388239000,-500.92004811,8.219e-05,2]
[422786246,1779388239000,-500.0,8.219e-05,2]
[422786245,1779388239000,-501.70655216,8.219e-05,2]
[422786244,1779388239000,-502.29685896,8.219e-05,2]
[422786243,1779388239000,-502.59,8.219e-05,2]
[422786241,1779388239000,-190.62449295,8.219e-05,2]
[422786242,1779388239000,-500.0,8.219e-05,2]
[422786239,1779388239000,-500.0,8.219e-05,2]
[422786235,1779388239000,-445.33919365,8.219e-05,2]
[422786236,1779388239000,-501.18698301,8.219e-05,2]
[422786240,1779388239000,-369.22550705,8.219e-05,2]
[422786321,1779388240000,-500.0,8.498e-05,2]
[422786319,1779388240000,-500.0,8.498e-05,2]
[422786317,1779388240000,-500.0,8.498e-05,2]
[422786320,1779388240000,-500.0,8.498e-05,2]
[422786322,1779388240000,-720.0,8.526e-05,2]
[422786324,1779388240000,-5963.25809393,8.661e-05,21]
[422786318,1779388240000,-637.52,8.498e-05,2]
[422786323,1779388240000,-152.0,8.584e-05,2]
[422786331,1779388240000,-500.0,8.767e-05,2]
[422786326,1779388240000,-354.38682158,8.684e-05,21]
[422786327,1779388240000,-562.54,8.767e-05,2]
[422786329,1779388240000,-559.85,8.767e-05,2]
[422786328,1779388240000,-500.0,8.767e-05,2]
[422786330,1779388240000,-502.59,8.767e-05,2]
[422786333,1779388240000,-543.16,8.767e-05,2]
[422786316,1779388240000,-630.92,8.498e-05,2]
[422786332,1779388240000,-3284.59,8.767e-05,2]
[422786325,1779388240000,-186.587482,8.682e-05,2]
[422786315,1779388240000,-500.0,8.498e-05,2]
[422786298,1779388240000,-572.87,8.493e-05,2]
[422786314,1779388240000,-500.0,8.498e-05,2]
[422786334,1779388240000,-572.87,8.767e-05,2]
[422786290,1779388240000,-559.85,8.493e-05,2]
[422786291,1779388240000,-502.59,8.493e-05,2]
[422786293,1779388240000,-500.0,8.493e-05,2]
[422786295,1779388240000,-3284.59,8.493e-05,2]
[422786296,1779388240000,-500.0,8.493e-05,2]
[422786299,1779388240000,-500.0,8.493e-05,2]
[422786301,1779388240000,-504.52,8.493e-05,2]
[422786300,1779388240000,-500.0,8.493e-05,2]
[422786302,1779388240000,-500.0,8.493e-05,2]
[422786305,1779388240000,-500.0,8.493e-05,2]
[422786304,1779388240000,-407.16081687,8.493e-05,2]
[422786306,1779388240000,-500.0,8.493e-05,2]
[422786307,1779388240000,-500.0,8.493e-05,2]
[422786309,1779388240000,-500.0,8.493e-05,2]
[422786308,1779388240000,-500.0,8.493e-05,2]
[422786310,1779388240000,-500.0,8.493e-05,2]
[422786311,1779388240000,-500.0,8.498e-05,2]
[422786312,1779388240000,-500.0,8.498e-05,2]
[422786313,1779388240000,-500.0,8.498e-05,2]
[422786335,1779388240000,-500.0,8.767e-05,2]
[422786351,1779388240000,-562.54,9.041e-05,2]
[422786338,1779388240000,-500.0,8.767e-05,2]
[422786361,1779388240000,-500.0,9.041e-05,2]
[422786362,1779388240000,-500.0,9.041e-05,2]
[422786364,1779388240000,-500.0,9.041e-05,2]
[422786366,1779388240000,-500.0,9.041e-05,2]
[422786363,1779388240000,-500.0,9.041e-05,2]
[422786365,1779388240000,-500.0,9.041e-05,2]
[422786369,1779388240000,-161.7158655,9.107e-05,2]
[422786367,1779388240000,-208.15,9.046e-05,2]
[422786359,1779388240000,-500.0,9.041e-05,2]
[422786368,1779388240000,-233.25,9.1e-05,2]
[422786373,1779388240000,-1070192.98091611,9.2e-05,2]
[422786372,1779388240000,-275457.44967461,9.2e-05,2]
[422786370,1779388240000,-2961.7745007,9.123e-05,2]
[422786339,1779388240000,-500.0,8.767e-05,2]
[422786375,1779388240000,-199384.27801668,9.2e-05,2]
[422786390,1779388240000,-500.0,8.219e-05,2]
[422786394,1779388240000,-69074.53783519,9.2e-05,2]
[422786392,1779388240000,-2487.63384,9.2e-05,2]
[422786371,1779388240000,-1033.00674478,9.171e-05,2]
[422786360,1779388240000,-504.52,9.041e-05,2]
[422786374,1779388240000,-1209.54522975,9.2e-05,2]
[422786358,1779388240000,-500.0,9.041e-05,2]
[422786336,1779388240000,-500.0,8.767e-05,2]
[422786337,1779388240000,-504.52,8.767e-05,2]
[422786340,1779388240000,-500.0,8.767e-05,2]
[422786341,1779388240000,-500.0,8.767e-05,2]
[422786343,1779388240000,-308.32127884,8.767e-05,2]
[422786344,1779388240000,-500.0,8.767e-05,2]
[422786346,1779388240000,-500.0,8.772e-05,2]
[422786342,1779388240000,-500.0,8.767e-05,2]
[422786347,1779388240000,-3297.135935,8.82e-05,2]
[422786348,1779388240000,-154.69690584,8.831e-05,2]
[422786350,1779388240000,-186.587482,9.019e-05,2]
[422786352,1779388240000,-500.0,9.041e-05,2]
[422786349,1779388240000,-226.2251417,8.838e-05,2]
[422786354,1779388240000,-502.59,9.041e-05,2]
[422786353,1779388240000,-559.85,9.041e-05,2]
[422786355,1779388240000,-500.0,9.041e-05,2]
[422786356,1779388240000,-3284.59,9.041e-05,2]
[422786345,1779388240000,-531.12743852,8.772e-05,2]
[422786357,1779388240000,-572.87,9.041e-05,2]